bitfinex/quotes_ETHUSD_20241120
["timestamp","ask_amount","ask_price","bid_price","bid_amount"]
[1732116398499,3.0,3106.5,3105.4,1.30011089]
[1732116398704,3.7794,3106.3,3105.4,0.50501089]
[1732116398905,0.7794,3106.3,3105.4,0.50501089]
[1732116399144,0.04148816,3106.2,3105.4,0.50501089]
[1732116399617,0.7794,3106.1,3105.4,0.50501089]
[1732116399804,7.74434899,3106.1,3104.8,0.7951]
[1732116400007,3.82083617,3106.1,3105.0,0.50501089]
[1732116400441,0.7794,3106.0,3105.0,0.50501089]
[1732116400604,0.7794,3106.0,3103.9,0.34540183]
[1732116400605,0.7794,3105.7,3104.5,0.50501089]
[1732116400949,0.04118897,3105.6,3104.5,0.99133923]
[1732116401148,0.04118897,3105.6,3104.6,0.17864392]
[1732116401306,3.0,3105.4,3104.6,0.17864392]
[1732116401511,0.8281,3105.3,3104.4,0.50501089]
[1732116401705,0.8281,3105.3,3104.4,0.99133923]
[1732116401706,0.86912874,3105.3,3104.4,0.99133923]
[1732116402611,0.86912874,3105.3,3104.5,0.55]
[1732116402945,1.57805061,3105.3,3104.4,0.99133923]
[1732116403108,1.57805061,3105.3,3104.1,0.7673]
[1732116403310,0.86912874,3105.3,3104.5,0.48632834]
[1732116403524,0.86912874,3105.3,3104.6,0.50501089]
[1732116403724,0.86912874,3105.3,3104.5,0.48632834]
[1732116403950,0.86912874,3105.3,3104.2,0.48632834]
[1732116404161,0.86912874,3105.3,3104.3,0.55]
[1732116404725,0.86912874,3105.3,3104.5,0.55]
[1732116404929,0.86912874,3105.3,3104.6,0.48632834]
[1732116405130,0.86912874,3105.3,3104.7,0.55]
[1732116405336,0.04102874,3105.3,3104.9,0.55]
[1732116405544,0.04102874,3105.3,3104.9,1.21711117]
[1732116405756,0.752,3105.6,3104.9,1.21711117]
[1732116406361,0.04011704,3105.5,3104.9,1.21711117]
[1732116406515,0.04011704,3105.5,3104.9,0.73078283]
[1732116406712,0.04011704,3105.5,3104.6,0.58220472]
[1732116406958,0.04011704,3105.5,3104.9,0.48632834]
[1732116407219,0.752,3105.6,3104.9,0.48632834]
[1732116407724,0.822,3105.9,3105.0,0.58220468]
[1732116407922,0.822,3105.9,3105.0,1.03632834]
[1732116408132,0.822,3105.9,3105.0,0.55]
[1732116408372,0.039022,3105.8,3105.2,0.55]
[1732116408661,0.822,3105.9,3105.2,0.23609283]
[1732116408855,0.822,3105.9,3104.6,0.55]
[1732116409249,0.03902578,3105.8,3104.8,0.55]
[1732116409450,0.03902578,3105.8,3105.0,0.55]
[1732116409647,0.8185,3106.3,3105.0,0.55]
[1732116409960,0.03767164,3105.7,3105.2,0.55]
[1732116410261,0.8185,3106.3,3105.1,0.66933117]
[1732116410461,3.21934,3106.3,3105.2,0.16316803]
[1732116410618,0.8243,3106.1,3104.7,0.55]
[1732116410814,0.8243,3106.1,3104.9,0.55]
[1732116411060,0.796,3105.8,3104.9,0.55]
[1732116411233,0.796,3105.8,3104.7,0.55]
[1732116411431,0.03767164,3105.7,3104.7,0.55]
[1732116412252,0.03767164,3105.7,3104.7,1.03632834]
[1732116412432,0.03767164,3105.7,3104.9,0.55]
[1732116412621,0.03767164,3105.7,3104.8,0.17911283]
[1732116412966,0.03767164,3105.7,3104.3,0.4760208]
[1732116412967,0.8022,3105.6,3104.4,0.48632834]
[1732116413146,0.8022,3105.6,3104.4,0.96234914]
[1732116413468,0.03741278,3105.5,3104.5,0.4760208]
[1732116413674,0.03741278,3105.5,3104.6,0.485564]
[1732116414465,0.03741278,3105.5,3104.7,0.55]
[1732116414820,0.03741278,3105.5,3104.7,1.035564]
[1732116414955,0.03741278,3105.5,3104.8,0.485564]
[1732116415142,0.03741278,3105.5,3104.9,0.58220484]
[1732116415471,0.8022,3105.6,3104.9,0.485564]
[1732116415675,0.8022,3105.6,3105.0,0.03220485]
[1732116415894,0.821,3106.5,3105.1,0.55]
[1732116416174,0.821,3106.5,3105.1,0.9615848]
[1732116416334,0.821,3106.3,3105.1,0.485564]
[1732116416532,0.821,3106.3,3105.2,0.485564]
[1732116416859,0.821,3106.1,3105.0,0.55]
[1732116417242,0.03765756,3106.0,3105.0,0.55]
[1732116417435,0.03765756,3106.0,3105.0,1.035564]
[1732116417636,0.03765756,3106.0,3105.1,1.1414812]
[1732116418034,0.03765756,3106.0,3105.2,0.58220115]
[1732116418233,0.03765756,3106.0,3105.4,0.55]
[1732116418479,0.7816,3106.4,3105.6,0.55]
[1732116418694,0.7816,3106.4,3105.6,1.035564]
[1732116418846,0.03780774,3106.3,3105.6,1.035564]
[1732116419052,0.7816,3106.4,3105.7,0.485564]
[1732116419279,0.7816,3106.4,3105.7,0.6671104]
[1732116420592,0.7816,3106.4,3105.3,0.55]
[1732116420792,0.03780774,3106.3,3105.4,0.9615848]
[1732116421088,0.7816,3106.4,3105.4,0.9615848]
[1732116421491,0.03780989,3106.3,3105.4,0.9615848]
[1732116421792,0.7816,3106.4,3105.4,0.9615848]
[1732116422321,0.7816,3106.4,3105.5,0.58219748]
[1732116422467,0.03780931,3106.3,3105.5,0.55]
[1732116422802,0.7816,3106.4,3105.7,0.55]
[1732116423094,0.7816,3106.4,3105.7,1.035564]
[1732116423677,0.7816,3106.4,3105.2,0.7881]
[1732116423864,0.03780971,3106.3,3105.5,0.485564]
[1732116424056,0.03780971,3106.3,3105.5,0.9615848]
[1732116424366,0.03780971,3106.3,3105.6,0.9615848]
[1732116424576,0.7816,3106.4,3105.6,0.9615848]
[1732116425778,0.7821,3107.5,3106.0,0.55]
[1732116425956,0.7821,3107.5,3106.1,0.9615848]
[1732116426219,0.7821,3107.3,3106.1,1.13684328]
[1732116426538,0.8314,3107.1,3105.7,0.4760208]
[1732116426842,0.03691333,3107.0,3105.9,0.485564]
[1732116427148,0.8314,3106.7,3105.3,0.55]
[1732116427360,0.8314,3106.7,3105.5,0.55]
[1732116427538,3.21905,3106.5,3104.8,0.7672]
[1732116427710,0.8314,3106.3,3104.9,0.9615848]
[1732116428056,0.03652343,3106.2,3104.9,0.9615848]
[1732116428210,0.8314,3106.1,3104.9,0.9615848]
[1732116428415,0.03642529,3106.0,3105.0,0.17287848]
[1732116428666,0.8183,3105.9,3105.1,0.4760208]
[1732116428843,0.8183,3105.9,3105.1,0.9615848]
[1732116429148,0.03632391,3105.8,3105.1,0.9615848]
[1732116429983,0.8183,3105.9,3105.1,0.9615848]
[1732116430181,0.03627442,3105.7,3105.1,0.9615848]
[1732116430476,0.8183,3105.9,3105.1,0.9615848]
[1732116431886,0.8278,3105.7,3104.5,0.7768]
[1732116432033,0.8278,3105.7,3104.8,0.4760208]
[1732116432379,0.0362243,3105.6,3104.8,0.9615848]
[1732116432533,0.0362243,3105.6,3104.9,0.99378981]
[1732116432736,0.0362243,3105.6,3104.9,0.9615848]
[1732116433033,3.0,3106.7,3104.9,0.9615848]
[1732116433034,0.8317,3106.8,3105.0,0.7951]
[1732116433349,0.8317,3106.8,3105.3,0.55]
[1732116433595,0.03676205,3106.7,3105.5,0.55]
[1732116433752,0.828,3106.6,3105.6,0.51775858]
[1732116434070,0.828,3106.6,3105.7,0.03219458]
[1732116434383,0.828,3106.6,3105.8,0.9615848]
[1732116434552,0.828,3106.6,3105.9,0.55]
[1732116434753,0.828,3106.6,3106.0,0.22846848]
[1732116434949,0.828,3106.6,3106.0,0.71403248]
[1732116435194,0.1423512,3107.8,3106.1,1.0260208]
[1732116435195,0.828,3107.7,3106.1,1.0260208]
[1732116435479,3.0,3107.5,3106.2,0.1772248]
[1732116435634,0.7562,3107.4,3106.1,0.4760208]
[1732116435837,0.03706337,3107.3,3106.1,0.4760208]
[1732116436063,0.7508,3107.2,3106.1,0.4760208]
[1732116436342,0.7508,3107.2,3106.0,0.22846848]
[1732116436539,0.7508,3107.2,3105.7,0.485564]
[1732116436540,0.7508,3107.0,3105.7,0.485564]
[1732116436784,0.7508,3107.0,3105.8,0.4760208]
[1732116437076,0.03686833,3106.9,3105.9,0.51775755]
[1732116437274,0.03686833,3106.9,3106.0,0.4760208]
[1732116437492,0.03686833,3106.9,3106.1,0.485564]
[1732116437698,0.03686833,3106.9,3106.1,1.7262848]
[1732116437994,0.03686833,3106.9,3106.2,0.17262848]
[1732116438194,0.7508,3107.0,3106.2,0.17262848]
[1732116438501,0.7508,3107.0,3106.1,1.7262848]
[1732116438502,0.03686883,3106.9,3106.1,0.9615848]
[1732116438860,0.7508,3107.0,3106.1,0.9615848]
[1732116439259,0.03686877,3106.9,3106.1,0.9615848]
[1732116439757,0.7508,3107.0,3106.1,0.9615848]
[1732116440602,0.03686877,3106.9,3106.1,0.9615848]
[1732116441010,0.7983,3106.8,3105.5,0.4760208]
[1732116441214,0.7983,3106.8,3105.4,0.7641]
[1732116441504,0.03677086,3106.7,3105.6,0.485564]
[1732116441800,0.03677086,3106.7,3105.7,0.50821509]
[1732116442115,0.7983,3106.8,3105.8,0.485564]
[1732116442261,0.7983,3106.8,3105.9,0.4760208]
[1732116442601,0.03677104,3106.7,3105.9,0.9615848]
[1732116442760,0.03677104,3106.7,3105.9,0.4760208]
[1732116442967,0.7983,3106.8,3105.9,0.4760208]
[1732116443271,0.7983,3106.8,3105.9,0.9615848]
[1732116443995,0.0357698,3106.7,3105.9,0.9615848]
[1732116444385,0.7983,3106.8,3106.0,0.485564]
[1732116444564,0.7983,3106.8,3106.1,0.4760208]
[1732116444986,0.7983,3106.8,3106.2,0.17548848]
[1732116447195,0.7983,3106.8,3106.2,0.65150928]
[1732116447399,0.7983,3106.8,3106.2,0.4760208]
[1732116447720,0.7983,3106.8,3106.3,0.4760208]
[1732116449144,0.7983,3106.8,3105.9,0.4760208]
[1732116449351,0.7983,3106.8,3106.0,0.55]
[1732116449510,0.03577173,3106.7,3105.9,0.4760208]
[1732116449863,0.8047,3106.6,3105.3,1.2563208]
[1732116450364,0.03567424,3106.5,3105.4,0.51776162]
[1732116450499,0.03567424,3106.5,3105.5,0.4760208]
[1732116450706,0.03567424,3106.5,3105.6,0.485564]
[1732116450945,0.8047,3106.6,3105.7,0.4760208]
[1732116451095,0.8047,3106.6,3105.8,0.55]
[1732116451299,0.8047,3106.6,3105.8,1.5115848]
[1732116451597,0.8047,3106.6,3105.9,0.50821411]
[1732116451912,0.7577,3107.6,3106.1,1.3057]
[1732116452125,0.7577,3107.5,3106.1,2.2672848]
[1732116452328,0.79386093,3107.5,3106.2,0.4760208]
[1732116452499,0.79386093,3107.5,3106.2,0.17817208]
[1732116452854,0.8102,3107.4,3106.2,0.17817208]
[1732116452996,0.03606306,3107.3,3106.2,0.4760208]
[1732116453349,0.8102,3107.2,3106.2,0.4760208]
[1732116453498,0.84621412,3107.2,3106.2,0.4760208]
[1732116455111,0.84621412,3107.2,3105.9,0.55]
[1732116455306,0.84621412,3107.2,3105.8,0.7557]
[1732116455307,0.84621412,3107.2,3106.0,0.485564]
[1732116455607,3.03601412,3107.2,3106.0,0.4760208]
[1732116455841,0.7703,3107.0,3106.0,0.4760208]
[1732116456059,0.7703,3107.0,3105.5,3.0]
[1732116456060,3.25348658,3106.9,3105.4,0.4760208]
[1732116456214,0.7522,3106.7,3105.4,0.4760208]
[1732116456422,0.03461984,3106.6,3105.5,0.485564]
[1732116456630,0.78591984,3106.6,3105.5,0.9615848]
[1732116456960,0.78591984,3106.6,3105.6,0.9615848]
[1732116459150,0.78591984,3106.6,3105.6,1.7144848]
[1732116459351,0.78591984,3106.6,3105.7,0.17144848]
[1732116459504,0.8287,3106.5,3105.3,0.55]
[1732116459857,0.03452054,3106.4,3105.1,0.4760208]
[1732116460099,0.81302054,3106.4,3105.1,0.4760208]
[1732116460449,0.81302054,3106.4,3105.2,1.035564]
[1732116460650,0.81302054,3106.4,3105.4,0.55]
[1732116460885,0.81302054,3106.4,3105.5,0.4760208]
[1732116461385,0.81302054,3106.4,3105.5,0.9615848]
[1732116461761,0.81302054,3106.4,3105.6,0.485564]
[1732116461960,0.81302054,3106.4,3105.6,0.9615848]
[1732116462159,0.81302054,3106.4,3105.7,1.0260208]
[1732116462395,0.81302054,3106.4,3105.7,1.5115848]
[1732116462594,0.7785,3106.4,3105.7,1.5115848]
[1732116462887,0.03446743,3106.3,3105.7,1.5115848]
[1732116463072,0.03446743,3106.3,3105.7,0.9615848]
[1732116463272,0.03446743,3106.3,3105.7,0.4760208]
[1732116463491,0.7785,3106.4,3105.7,0.4760208]
[1732116463733,0.7785,3106.4,3105.8,0.485564]
[1732116463734,0.03441846,3106.2,3105.8,0.485564]
[1732116463896,0.7785,3106.4,3105.8,0.485564]
[1732116464099,0.7785,3106.4,3105.8,0.9615848]
[1732116464301,0.7785,3106.4,3105.9,0.4760208]
[1732116464634,0.7285,3106.4,3105.9,0.9615848]
[1732116464993,0.03446743,3106.3,3105.9,0.9615848]
[1732116465632,0.03446743,3106.3,3106.0,0.485564]
[1732116466432,0.03446743,3106.3,3105.9,0.4760208]
[1732116466631,0.72296743,3106.4,3105.5,0.7951]
[1732116466834,0.03720729,3106.2,3105.6,0.55]
[1732116467136,0.03715078,3106.1,3105.8,0.55]
[1732116467492,0.72296743,3106.4,3105.8,0.55]
[1732116467926,0.72296743,3106.4,3105.8,0.65978933]
[1732116468097,0.72296743,3106.4,3105.8,0.485564]
[1732116468297,0.03726258,3106.3,3105.6,0.4760208]
[1732116468695,6.21881,3106.8,3105.6,0.4760208]
[1732116468894,0.04030635,3106.2,3105.6,0.4760208]
[1732116469196,3.0,3106.6,3105.1,0.95139492]
[1732116469394,0.7162608,3106.5,3105.1,0.95139492]
[1732116469640,0.7924,3106.6,3105.2,0.46583092]
[1732116469957,0.7924,3106.3,3105.3,0.485564]
[1732116470136,0.7924,3106.3,3105.4,0.46583092]
[1732116470340,0.03224508,3106.2,3105.5,0.51776295]
[1732116470492,0.03224508,3106.2,3105.6,1.01583092]
[1732116470692,0.7924,3106.3,3105.6,2.30969492]
[1732116470933,0.7924,3106.3,3105.6,0.95139492]
[1732116471147,0.7774,3106.0,3104.7,0.8083]
[1732116471352,0.7774,3105.9,3104.7,0.8083]
[1732116471551,0.81632308,3105.9,3104.7,0.8083]
[1732116472066,0.81632308,3105.9,3104.8,0.03220217]
[1732116472560,0.81632308,3105.9,3104.9,0.8208]
[1732116472730,0.81632308,3105.9,3105.0,0.58219784]
[1732116472911,0.7774,3105.9,3105.0,0.55]
[1732116473235,0.03586693,3105.8,3105.0,0.55]
[1732116473450,0.7774,3105.9,3105.0,0.55]
[1732116473752,0.7774,3105.9,3104.9,0.8208]
[1732116474127,0.03885585,3105.8,3104.9,0.8208]
[1732116475915,0.7808,3105.7,3104.6,1.3186]
[1732116476325,0.03873337,3105.6,3104.6,1.3186]
[1732116477863,0.8018,3105.5,3104.5,0.55]
[1732116478061,0.03861088,3105.4,3104.5,0.55]
[1732116479550,0.03861088,3105.4,3104.6,0.03220535]
[1732116479752,0.03861088,3105.4,3104.7,0.55]
[1732116480463,0.03304254,3105.3,3104.7,0.55]
[1732116480673,0.8018,3105.5,3104.5,0.55]
[1732116480827,0.03564081,3105.4,3104.9,0.55]
[1732116481024,0.8018,3105.5,3104.9,0.55]
[1732116481222,0.8018,3105.5,3104.7,0.55]
[1732116481461,0.8018,3105.5,3104.8,0.03220069]
[1732116481664,3.23858,3107.0,3104.9,1.3779]
[1732116481665,0.7745,3105.8,3104.9,1.3779]
[1732116481868,0.7745,3105.8,3105.1,0.55]
[1732116482350,0.7745,3105.8,3105.0,0.55]
[1732116482925,0.0423188,3105.7,3105.0,0.55]
[1732116483323,0.7745,3105.8,3105.0,0.58220052]
[1732116483724,0.7745,3105.8,3104.7,0.55]
[1732116483972,0.7745,3105.8,3104.7,0.85]
[1732116484130,0.7908,3105.6,3104.5,0.55]
[1732116484334,0.7908,3105.6,3104.3,0.81950369]
[1732116484559,0.03569515,3105.5,3104.3,0.81950369]
[1732116484870,0.7908,3105.6,3104.3,0.81950369]
[1732116485668,0.7908,3105.6,3104.6,0.55]
[1732116485875,0.7908,3105.6,3104.8,0.55]
[1732116488537,0.7908,3105.6,3104.7,0.55]
[1732116489080,0.7908,3105.6,3104.6,0.55]
[1732116489445,0.7908,3105.6,3104.8,0.55]
[1732116489792,0.03314389,3105.5,3104.6,0.55]
[1732116489960,0.04218313,3105.5,3104.6,0.55]
[1732116490686,0.8226,3105.4,3104.6,0.55]
[1732116490859,0.0420495,3105.3,3104.5,0.55]
[1732116491056,0.8194,3105.2,3104.4,0.33561772]
[1732116491388,0.8194,3105.0,3104.4,0.33561772]
[1732116491746,0.04178251,3104.9,3104.4,0.33561772]
[1732116492186,1.96173526,3104.2,3103.9,0.03221035]
[1732116492386,1.96173526,3104.2,3103.8,0.7686]
[1732116492559,0.04124393,3104.1,3103.9,0.55]
[1732116492763,0.04124393,3104.1,3103.9,3.55]
[1732116493088,0.04124393,3104.1,3104.0,0.98186]
[1732116493486,0.04124393,3104.1,3103.9,0.58221169]
[1732116493690,0.04124393,3104.1,3103.9,3.58221169]
[1732116493853,0.04124393,3104.1,3103.9,0.58221169]
[1732116494049,0.04124393,3104.1,3104.0,1.3486]
[1732116494410,1.96173526,3104.2,3104.1,0.55]
[1732116494560,1.96173526,3104.2,3104.1,0.73986]
[1732116499901,0.8194,3105.0,3104.1,0.73986]
[1732116500054,0.8194,3105.0,3104.1,0.55]
[1732116500253,0.7687,3104.8,3103.8,0.58220905]
[1732116500488,0.03817205,3104.7,3103.8,0.55]
[1732116500760,0.7687,3104.6,3103.4,0.84231187]
[1732116501332,0.04150828,3104.5,3103.4,0.84231187]
[1732116501629,6.22044,3105.2,3103.4,0.84231187]
[1732116501630,3.0,3105.2,3105.0,14.18979172]
[1732116501830,3.0,3105.6,3105.0,14.18979172]
[1732116502041,6.2205,3105.1,3105.0,14.18979172]
[1732116502601,3.0,3105.4,3105.0,14.18979172]
[1732116502923,3.0,3105.1,3105.0,14.18979172]
[1732116503439,3.0,3105.2,3105.0,14.18979172]
[1732116503648,3.0,3105.6,3105.0,14.18979172]
[1732116503799,3.0,3105.3,3105.0,14.18979172]
[1732116504003,3.0,3105.1,3105.0,14.18979172]
[1732116504225,3.0,3105.2,3105.0,14.18979172]
[1732116504412,0.3,3105.5,3105.0,14.18979172]
[1732116504601,3.22014,3105.5,3105.0,14.18979172]
[1732116504797,0.8212,3105.3,3105.0,14.18979172]
[1732116505029,3.7775,3105.1,3105.0,14.18979172]
[1732116505211,4.477291,3105.1,3105.0,14.18979172]
[1732116505415,7.697791,3105.1,3105.0,14.18979172]
[1732116505929,1.477291,3105.1,3105.0,14.18979172]
[1732116506111,4.477291,3105.1,3105.0,14.18979172]
[1732116506311,1.477291,3105.1,3105.0,14.18979172]
[1732116506526,4.477291,3105.1,3105.0,14.18979172]
[1732116506742,1.477291,3105.1,3105.0,14.18979172]
[1732116507143,4.697791,3105.1,3105.0,14.18979172]
[1732116507437,7.697791,3105.1,3105.0,14.18979172]
[1732116507841,1.477291,3105.1,3105.0,14.18979172]
[1732116508243,0.7775,3105.1,3105.0,14.18979172]
[1732116509308,0.82640438,3105.1,3105.0,14.18979172]
[1732116511044,0.7775,3105.1,3105.0,14.18979172]
[1732116511424,0.8325171,3105.1,3105.0,14.18979172]
[1732116513025,6.998,3105.1,3105.0,14.18979172]
[1732116513212,8.0748571,3105.1,3105.0,14.18979172]
[1732116516210,8.6448571,3105.1,3105.0,12.34508174]
[1732116516737,8.6448571,3105.1,3105.0,11.50735472]
[1732116516951,8.6448571,3105.1,3105.0,6.80625472]
[1732116517240,8.6448571,3105.1,3105.0,6.42145472]
[1732116517662,8.6448571,3105.1,3102.7,0.3218]
[1732116517663,0.8252,3103.8,3102.7,0.8295]
[1732116517884,0.05373003,3103.7,3102.7,0.8295]
[1732116518046,3.27569003,3103.7,3102.7,0.8295]
[1732116518252,3.68577903,3103.7,3102.7,0.99426292]
[1732116518579,0.46381903,3103.7,3102.7,0.99426292]
[1732116518734,3.68579903,3103.7,3102.7,0.99426292]
[1732116519243,3.22207,3103.6,3102.7,0.99426292]
[1732116519575,3.22227,3103.4,3102.6,0.81812922]
[1732116519746,0.85614607,3103.5,3102.6,0.81812922]
[1732116519947,0.05334539,3103.3,3102.6,0.81812922]
[1732116520261,0.05325339,3103.2,3102.6,0.81812922]
[1732116520575,0.8026,3103.5,3102.6,0.81812922]
[1732116520576,0.8026,3103.5,3102.6,0.98043214]
[1732116520777,0.05316138,3103.1,3102.6,0.98043214]
[1732116521076,0.05306937,3103.0,3102.6,0.98043214]
[1732116521287,3.0,3103.4,3102.6,0.98043214]
[1732116521288,0.8132,3103.3,3102.6,0.81812922]
[1732116521578,3.8132,3103.0,3102.6,0.81812922]
[1732116521762,7.03594,3103.0,3102.6,0.81812922]
[1732116521962,0.05297735,3102.9,3102.6,0.81812922]
[1732116522166,0.05297735,3102.9,3101.9,0.03223551]
[1732116522379,0.05297735,3102.9,3101.8,0.7909]
[1732116522582,0.76185309,3102.9,3101.8,0.7909]
[1732116522736,0.05297735,3102.9,3101.8,0.7909]
[1732116524554,0.7968,3102.8,3101.8,0.7909]
[1732116524859,0.05279329,3102.7,3101.8,0.7909]
[1732116526859,0.05279329,3102.7,3102.1,0.55]
[1732116527059,0.7616,3103.1,3102.1,0.55]
[1732116527385,0.05306475,3103.0,3102.1,0.55]
[1732116527788,0.7616,3103.1,3102.1,0.55]
[1732116527975,0.05297273,3102.9,3102.1,0.55]
[1732116528179,0.7616,3103.1,3102.1,0.55]
[1732116528583,0.05306475,3103.0,3101.6,3.0]
[1732116528782,0.05306475,3103.0,3101.7,1.09842322]
[1732116528783,0.8012,3102.9,3101.7,1.09842322]
[1732116529096,0.0528807,3102.8,3101.8,0.7942]
[1732116529297,0.8012,3102.9,3101.8,0.7942]
[1732116529960,0.0528807,3102.8,3101.9,0.55]
[1732116530164,0.0528807,3102.8,3101.8,0.7942]
[1732116530380,0.8012,3102.9,3101.8,0.7942]
[1732116530675,0.0528807,3102.8,3101.8,0.7942]
[1732116530872,0.8091,3102.7,3101.3,0.7861]
[1732116531089,0.86188867,3102.7,3101.3,0.7861]
[1732116531892,0.8091,3102.5,3101.3,0.7861]
[1732116532420,3.0,3101.7,3100.4,0.8018]
[1732116532636,0.8015,3101.5,3100.4,0.8018]
[1732116533192,0.8015,3101.5,3099.6,0.7939]
[1732116533421,0.8015,3101.5,3099.7,0.01]
[1732116533632,0.8015,3101.5,3099.8,0.82615249]
[1732116533917,0.8015,3101.5,3099.8,0.7939]
[1732116534135,3.8015,3101.5,3099.8,0.7939]
[1732116534280,0.773,3101.4,3099.8,0.7939]
[1732116534483,0.7948,3101.3,3099.8,0.7939]
[1732116535078,0.7948,3101.3,3099.9,3.0]
[1732116535362,0.7609,3101.2,3100.0,0.37939]
[1732116535657,0.7609,3101.2,3099.8,0.7939]
[1732116536375,0.7812,3101.1,3099.8,0.7939]
[1732116536556,0.7812,3100.9,3099.8,0.7939]
[1732116537679,3.7812,3100.7,3099.2,0.8039]
[1732116537886,0.700621,3100.6,3099.2,0.8039]
[1732116538193,0.7812,3100.5,3099.2,0.8039]
[1732116538395,3.7812,3100.5,3099.2,0.8039]
[1732116538616,3.0,3100.5,3099.2,0.8039]
[1732116538768,0.7756,3100.2,3099.0,0.7874]
[1732116540520,0.7759,3100.9,3099.2,0.75]
[1732116540703,0.7837,3100.7,3099.2,0.75]
[1732116541393,0.7837,3100.7,3099.3,0.55]
[1732116541614,0.7837,3100.7,3099.5,0.7754]
[1732116541775,0.7837,3100.7,3099.6,0.55]
[1732116541979,0.8221,3101.4,3099.8,0.55]
[1732116542216,0.8221,3101.4,3100.0,0.55]
[1732116543177,0.8221,3101.4,3099.7,0.03225531]
[1732116543178,0.8221,3101.4,3100.2,0.55]
[1732116544221,0.8221,3101.4,3100.3,0.7535]
[1732116545285,3.22415,3101.6,3099.1,0.05225241]
[1732116545286,0.8259,3101.2,3099.4,0.7742]
[1732116545486,0.8259,3101.2,3099.6,0.7742]
[1732116546023,0.8259,3101.2,3099.7,0.7648]
[1732116547001,3.8359,3101.2,3099.7,0.7648]
[1732116547242,0.38359,3101.1,3099.7,0.7648]
[1732116547535,0.8259,3101.2,3099.7,0.7648]
[1732116548449,0.01,3102.0,3099.7,0.7648]
[1732116548598,3.38,3102.7,3100.3,0.55]
[1732116548599,0.8223,3101.6,3100.3,0.55]
[1732116548802,0.8223,3101.6,3100.2,0.7692]
[1732116548803,0.8223,3102.3,3100.7,0.55]
[1732116549026,0.8223,3101.9,3100.6,0.7692]
[1732116549235,3.22397,3101.8,3100.6,0.7692]
[1732116549404,0.8103,3101.6,3099.9,0.8332]
[1732116549713,0.8203,3101.4,3099.9,0.8332]
[1732116549916,0.8103,3101.1,3099.9,0.8332]
[1732116550106,0.8103,3100.9,3099.9,0.8332]
[1732116550717,0.01,3100.8,3099.0,0.777]
[1732116550929,0.8148,3100.7,3099.0,0.777]
[1732116551139,0.8148,3100.5,3099.0,0.777]
[1732116551304,0.8148,3100.1,3099.0,0.777]
[1732116551940,0.8148,3100.5,3099.0,0.777]
[1732116552241,3.22544,3100.4,3099.0,0.777]
[1732116552428,3.7547,3100.3,3099.0,0.777]
[1732116552620,0.7547,3100.3,3099.0,0.777]
[1732116552863,0.7547,3100.2,3099.0,0.777]
[1732116553061,3.0,3099.9,3098.1,0.42208654]
[1732116553371,0.7547,3100.0,3098.2,0.8026]
[1732116553523,3.0,3099.9,3098.3,0.16258093]
[1732116553722,0.7982,3099.8,3098.4,0.8042]
[1732116553967,0.37647,3100.1,3098.5,0.8042]
[1732116554161,0.7513,3100.8,3098.7,0.8059]
[1732116554467,3.7513,3100.8,3098.9,0.8059]
[1732116554634,0.37613,3100.7,3098.9,0.8059]
[1732116554839,0.7513,3100.8,3099.0,0.8059]
[1732116555063,0.7513,3100.8,3099.2,0.8059]
[1732116555559,0.7506,3100.6,3099.2,0.8059]
[1732116556442,3.7849,3100.3,3099.2,0.8059]
[1732116556628,3.701036,3100.2,3099.2,0.8059]
[1732116556967,0.7649,3100.1,3098.1,0.7521]
[1732116557164,3.7649,3100.1,3098.1,0.7521]
[1732116557467,3.8322,3099.9,3098.1,0.7521]
[1732116557769,3.8422,3099.9,3098.1,0.7521]
[1732116558007,3.0,3099.7,3098.1,0.7521]
[1732116558414,0.8322,3099.8,3098.3,0.7645]
[1732116558707,0.8322,3099.8,3098.5,0.7839]
[1732116559065,0.8168,3100.2,3098.7,0.7839]
[1732116559266,1.456112,3100.2,3098.7,0.7839]
[1732116559702,4.456112,3100.2,3098.7,0.7839]
[1732116559910,1.456112,3100.2,3098.7,0.7839]
[1732116560269,1.456112,3100.2,3098.6,0.55]
[1732116560270,1.456112,3100.2,3098.9,0.7843]
[1732116560610,0.8333,3100.5,3099.1,0.7843]
[1732116560792,3.8333,3100.5,3099.1,0.7843]
[1732116561114,0.705854,3100.4,3099.1,0.7843]
[1732116561262,3.8333,3100.5,3099.1,0.7843]
[1732116561465,0.8233,3100.5,3099.1,0.7843]
[1732116563015,0.8433,3100.5,3099.1,0.7843]
[1732116563327,3.8153,3100.0,3098.2,0.7937]
[1732116563508,0.704106,3099.9,3098.2,0.7937]
[1732116564216,3.8253,3099.8,3098.2,0.7937]
[1732116564581,0.8153,3099.8,3098.2,0.7937]
[1732116565208,0.7862,3100.1,3098.2,0.7937]
[1732116565425,0.7962,3100.1,3098.0,0.55]
[1732116565632,0.7962,3100.1,3098.2,0.55]
[1732116565925,0.7962,3100.1,3098.3,0.7974]
[1732116566090,0.7962,3100.1,3098.5,0.7865]
[1732116566290,0.37962,3100.0,3098.7,0.7865]
[1732116566680,3.37962,3100.0,3098.7,0.7865]
[1732116566910,6.60542,3100.0,3098.7,0.7865]
[1732116567117,4.289725,3099.9,3098.7,0.7865]
[1732116567280,0.8086,3099.7,3098.7,0.7865]
[1732116568580,1.063735,3099.9,3098.7,0.7865]
[1732116568780,0.7707,3100.0,3098.7,0.7865]
[1732116569523,0.94136044,3100.3,3098.8,0.7711]
[1732116569825,0.39613604,3100.2,3098.8,0.7711]
[1732116570921,3.0,3100.1,3098.8,0.7711]
[1732116571390,6.23577,3100.1,3098.8,0.7711]
[1732116571595,0.01,3100.1,3098.8,0.7711]
[1732116572009,0.7895,3100.0,3098.8,0.7711]
[1732116572322,3.0,3099.8,3098.8,0.7711]
[1732116572865,0.39613604,3100.2,3099.0,0.826]
[1732116573016,0.01,3100.7,3099.0,0.826]